fUST/lending_fUST_20260409
["ID","MTS","AMOUNT","RATE_DAILY","PERIOD"]
[420117367,1775691040723,-298.612995,0.00021918,2]
[420117369,1775691040733,-151.0,0.00021918,2]
[420117371,1775691040743,-151.0,0.00021918,2]
[420117373,1775691040752,-151.0,0.00021918,2]
[420117375,1775691040762,-151.0,0.00021918,2]
[420117377,1775691040771,-151.0,0.00021918,2]
[420117379,1775691040780,-151.0,0.00021918,2]
[420117380,1775691040790,-151.0,0.00021918,2]
[420117382,1775691040800,-151.0,0.00021918,2]
[420117385,1775691040810,-151.0,0.00021918,2]
[420117387,1775691040821,-151.0,0.00021918,2]
[420117389,1775691040831,-752.186281,0.00021918,2]
[420117390,1775691040840,-752.186281,0.00021918,2]
[420117392,1775691040850,-154.463807,0.00021918,2]
[420117394,1775691040860,-752.186281,0.00021918,2]
[420117397,1775691040870,-151.0,0.00021918,2]
[420117399,1775691040879,-331.30136598,0.00021918,2]
[420117465,1775691041501,-420.88491502,0.00021918,2]
[420117467,1775691041511,-32.11508498,0.00021918,2]
[420117469,1775691041523,-744.10299102,0.00021918,2]
[420117471,1775691041533,-776.218076,0.00021918,2]
[420117473,1775691041543,-479.67893298,0.00021918,2]
[420117487,1775691041672,-296.53914302,0.00021918,2]
[420117489,1775691041681,-600.43162492,0.00021918,2]
[420118028,1775691046896,-364.01455857,0.00020389,2]
[420118030,1775691046907,-600.0,0.00020603,2]
[420118032,1775691046917,-175.78645108,0.00021918,2]
[420118034,1775691046926,-26.35599035,0.00021918,2]
[420118958,1775691470547,165.129295,0.0001858,120]
[420118959,1775691524056,2000.0,0.00031507,120]
[420118960,1775691784556,558.5,0.000309,120]
[420118963,1775692233072,-673.65800602,0.00013426,10]
[420118964,1775692233084,-4326.34199398,0.00013426,10]
[420118965,1775692233094,-314.79942599,0.00013699,2]
[420119145,1775692237899,-685.20057401,0.00013699,2]
[420119146,1775692237909,-615.0,0.00013699,2]
[420119147,1775692237918,-8055.6687842,0.00018436,2]
[420119148,1775692237928,-165.129295,0.0001858,2]
[420119149,1775692237937,-500.0,0.00019235,2]
[420119150,1775692237946,-290.78150764,0.00019235,2]
[420119151,1775692237956,-500.0,0.00019235,2]
[420119152,1775692237965,-500.0,0.00019235,2]
[420119153,1775692237976,-507.47170476,0.00019235,2]
[420119154,1775692237985,-500.0,0.00019235,2]
[420119155,1775692237996,-500.0,0.00019235,2]
[420119156,1775692238006,-500.0,0.00019235,2]
[420119157,1775692238016,-500.0,0.00019235,2]
[420119158,1775692238026,-500.0,0.00019235,2]
[420119159,1775692238035,-500.0,0.00019235,2]
[420119160,1775692238045,-500.0,0.00019235,2]
[420119161,1775692238054,-500.0,0.00019235,2]
[420119162,1775692238064,-500.0,0.00019235,2]
[420119163,1775692238074,-500.0,0.00019235,2]
[420119164,1775692238084,-500.0,0.00019235,2]
[420119165,1775692238094,-500.0,0.00019235,2]
[420119166,1775692238106,-500.0,0.00019235,2]
[420119167,1775692238116,-500.0,0.00019235,2]
[420119168,1775692238127,-500.0,0.00019235,2]
[420119169,1775692238137,-434.52661055,0.00019235,2]
[420119170,1775692238147,-500.0,0.00019235,2]
[420119171,1775692238158,-500.0,0.00019235,2]
[420119172,1775692238167,-500.0,0.00019235,2]
[420119173,1775692238177,-500.0,0.00019235,2]
[420119174,1775692238187,-348.54031182,0.00019235,2]
[420119175,1775692238198,-500.0,0.00019235,2]
[420119176,1775692238208,-500.0,0.00019235,2]
[420119177,1775692238218,-500.0,0.00019235,2]
[420119178,1775692238228,-500.0,0.00019235,2]
[420119179,1775692238238,-500.0,0.00019235,2]
[420119180,1775692238248,-500.0,0.00019235,2]
[420119181,1775692238258,-624.87900606,0.00019235,2]
[420119182,1775692238268,-250.0,0.00019235,2]
[420119183,1775692238278,-500.0,0.00019235,2]
[420119185,1775692238288,-500.0,0.00019235,2]
[420119187,1775692238299,-500.0,0.00019235,2]
[420119189,1775692238309,-500.0,0.00019235,2]
[420119190,1775692238319,-500.0,0.00019235,2]
[420119191,1775692238329,-98822.64186671,0.00019236,2]
[420119192,1775692238345,-1666.4134488,0.00019236,2]
[420119273,1775692240777,-478.73865039,0.00019236,2]
[420119515,1775692243312,-500.0,0.00019235,2]
[420119517,1775692243323,-500.0,0.00019235,2]
[420119519,1775692243333,-38492.59933421,0.00019236,2]
[420119521,1775692243346,-798.23978973,0.00019236,2]
[420119523,1775692243359,-3391.27069464,0.00019236,2]
[420119526,1775692243371,-2265.967128,0.00019236,2]
[420119528,1775692243384,-1891.0220345,0.00019236,2]
[420119530,1775692243396,-300.0,0.00019236,2]
[420119736,1775692246013,-5000.0,0.00019043,10]
[420119738,1775692246022,-5219.12862401,0.00019236,2]
[420119740,1775692246037,-9523.08965803,0.00019236,2]
[420119760,1775692246223,-8096.7986602,0.00019236,2]
[420119762,1775692246234,-4215.9999828,0.00019236,2]
[420120360,1775692636996,599.96696073,0.00031506,120]
[420120362,1775692881135,-1000.0,0.00013699,2]
[420120363,1775692881162,-615.0,0.00013699,2]
[420120364,1775692881194,-615.6588697,0.00014175,2]
[420120365,1775692881222,-153.14937507,0.000149,2]
[420120366,1775692881250,-79.2341354,0.000149,2]
[420120367,1775692910230,-73.91523966,0.000149,2]
[420120368,1775692910258,-153.14937506,0.000149,2]
[420120369,1775692910316,-1106.78513019,0.00015983,2]
[420120370,1775692939471,-227.06461472,0.00015983,2]
[420120371,1775692950983,200.0,0.00024637,120]
[420120372,1775693010761,200.0,0.00029108,120]
[420120381,1775693075753,200.0,0.00029824,120]
[420120386,1775693419413,5000.0,0.0001,10]
[420120391,1775693432106,-356.18235441,0.0001,2]
[420120393,1775693432115,-560.0,0.0001,2]
[420120395,1775693432124,-1000.0,0.00013699,2]
[420120397,1775693432134,-3060.5846739,0.00015,2]
[420120400,1775693432145,-3939.4153261,0.00015,2]
[420120401,1775693432155,-1000.0,0.00015793,2]
[420120404,1775693432165,-359.53994998,0.00015983,2]
[420120406,1775693432174,-886.810735,0.0001615,2]
[420120408,1775693432184,-400.698,0.00016289,2]
[420120410,1775693432193,-575.9482896,0.00016289,2]
[420120412,1775693432202,-1199.41634795,0.000169,2]
[420120671,1775693441094,-5.24710568,0.000169,2]
[420120673,1775693441104,-384.68138962,0.00017856,2]
[420120833,1775693443328,-2403.70485075,0.00016731,10]
[420120835,1775693443341,-572.35719235,0.00016731,10]
[420120874,1775693443659,-2023.9379569,0.00016731,10]
[420120876,1775693443670,-215.31861038,0.00017856,2]
[420120878,1775693443680,-158.695771,0.00018223,2]
[420120880,1775693443691,-21115.99072339,0.00018556,2]
[420120883,1775693443704,-927.1608562,0.00018556,2]
[420121153,1775693446432,-27956.84842041,0.00018556,2]
[420121155,1775693446442,-183.679827,0.00018556,2]
[420121157,1775693446452,-500.0,0.00019032,2]
[420121159,1775693446462,-500.0,0.00019032,2]
[420121161,1775693446472,-332.91682381,0.00019032,2]
[420121163,1775693446483,-500.0,0.00019032,2]
[420121165,1775693446492,-500.0,0.00019032,2]
[420121167,1775693446502,-272.48266554,0.00019032,2]
[420121169,1775693446512,-500.0,0.00019032,2]
[420121171,1775693446522,-458.31988956,0.00019032,2]
[420121173,1775693446532,-250.0,0.00019032,2]
[420121175,1775693446541,-600.0,0.00019032,2]
[420121177,1775693446551,-500.0,0.00019032,2]
[420121179,1775693446561,-500.0,0.00019032,2]
[420121181,1775693446571,-500.0,0.00019032,2]
[420121183,1775693446581,-500.0,0.00019032,2]
[420121186,1775693446591,-500.0,0.00019032,2]
[420121187,1775693446600,-500.0,0.00019032,2]
[420121189,1775693446610,-582.81312062,0.00019032,2]
[420121191,1775693446620,-500.0,0.00019032,2]
[420121193,1775693446630,-500.0,0.00019032,2]
[420121195,1775693446639,-500.0,0.00019032,2]
[420121197,1775693446650,-469.12621961,0.00019032,2]
[420121199,1775693446660,-500.0,0.00019032,2]
[420121201,1775693446671,-500.0,0.00019032,2]
[420121203,1775693446680,-500.0,0.00019032,2]
[420121205,1775693446690,-500.0,0.00019032,2]
[420121207,1775693446700,-500.0,0.00019032,2]
[420121209,1775693446710,-500.0,0.00019032,2]
[420121211,1775693446719,-500.0,0.00019032,2]
[420121213,1775693446729,-500.0,0.00019032,2]
[420121215,1775693446739,-500.0,0.00019032,2]
[420121217,1775693446749,-500.0,0.00019032,2]
[420121219,1775693446760,-500.0,0.00019032,2]
[420121221,1775693446769,-500.0,0.00019032,2]
[420121223,1775693446779,-200.0,0.00019032,2]
[420121226,1775693446790,-500.0,0.00019032,2]
[420121227,1775693446800,-500.0,0.00019032,2]
[420121229,1775693446810,-28234.42368042,0.00019033,2]
[420121231,1775693446822,-7824.81069532,0.00019033,2]
[420121640,1775694039565,1000.0,0.000315,120]
[420121641,1775694084385,1000.0,0.000315,120]
[420121642,1775694106524,1000.0,0.00031,120]
[420121643,1775694109072,1000.0,0.000315,120]
[420121644,1775694378689,746.2919962,0.00031343,120]
[420121647,1775694479928,500.0,0.000315,120]
[420121682,1775694638585,-1000.0,0.00013699,2]
[420121685,1775694638595,-188.09,0.0001795,2]
[420121687,1775694638605,-220.08959229,0.00018454,2]
[420121689,1775694638617,-85.66892415,0.00018454,2]
[420121691,1775694638626,-305.75851644,0.00018542,2]
[420121693,1775694638635,-374.413,0.00018554,2]
[420121695,1775694638644,-305.75851644,0.0001863,2]
[420121697,1775694638654,-32907.48475381,0.0001873,2]
[420121699,1775694638663,-233.04177667,0.0001873,2]
[420121701,1775694638673,-1430026.27031952,0.00018731,2]
[420121877,1775694641222,-595.00000075,0.00018731,2]
[420121879,1775694641234,-1000.0,0.00018731,2]
[420122016,1775694642658,-1259.76777739,0.00018731,2]
[420122017,1775694642670,-2532.27554932,0.00018731,2]
[420122116,1775694643695,-493.6422938,0.00018731,2]
[420122118,1775694643708,-274.6353357,0.00018731,2]
[420122120,1775694643721,-6279.21407964,0.00018731,2]
[420122122,1775694643734,-4477.6306777,0.00018731,2]
[420122124,1775694643745,-46611.52583537,0.00018731,2]
[420122127,1775694643758,-152984.47745242,0.00018731,2]
[420122129,1775694643771,-42985.14899584,0.00018731,2]
[420122131,1775694643783,-3795.1,0.00018731,2]
[420122133,1775694643798,-1283.82286199,0.00018731,2]
[420122136,1775694643811,-1316.27915126,0.00018731,2]
[420122138,1775694643823,-701.62763894,0.00018731,2]
[420122205,1775694644473,-17066.37851927,0.00018731,2]
[420122208,1775694644483,-1447.85126709,0.000188,2]
[420122210,1775694644493,-1000.0,0.000188,2]
[420122212,1775694644502,-1578.84,0.00018822,3]
[420122213,1775694644511,-789.42,0.00018822,3]
[420122216,1775694644521,-394.71,0.00018822,3]
[420122217,1775694644530,-197.35,0.00018822,3]
[420122219,1775694644542,-592.1,0.00018822,3]
[420122221,1775694644551,-833.82,0.00018933,2]
[420122223,1775694644561,-833.82,0.00018933,2]
[420122225,1775694644570,-833.82,0.00018933,2]
[420122227,1775694644581,-833.82,0.00018933,2]
[420122230,1775694644591,-833.82,0.00018933,2]
[420122232,1775694644600,-833.82,0.00018933,2]
[420122234,1775694644610,-833.82,0.00018933,2]
[420122235,1775694644620,-833.82,0.00018933,2]
[420122238,1775694644630,-833.82,0.00018933,2]
[420122240,1775694644639,-833.82,0.00018933,2]
[420122242,1775694644649,-833.82,0.00018933,2]
[420122243,1775694644658,-833.82,0.00018933,2]
[420122245,1775694644667,-833.82,0.00018933,2]
[420122247,1775694644676,-833.82,0.00018933,2]
[420122249,1775694644686,-833.82,0.00018933,2]
[420122251,1775694644695,-833.82,0.00018933,2]
[420122253,1775694644705,-822.73784763,0.00018933,2]
[420122256,1775694644719,-11.08215237,0.00018933,2]
[420122258,1775694644728,-307.76544505,0.00018933,2]
[420122260,1775694644740,-361.0,0.00018933,2]
[420122306,1775694646440,-397.05455495,0.00018933,2]
[420122307,1775694646449,-237.40826829,0.00018973,2]
[420122308,1775694646458,-151.0,0.000191,2]
[420122309,1775694646468,-200.0,0.00019178,2]
[420122310,1775694646478,-600.0,0.00019413,2]
[420122311,1775694646487,-200.0,0.00019769,2]
[420122312,1775694646497,-527.0154105,0.00019781,2]
[420122313,1775694646507,-810.76341696,0.00019781,2]
[420122314,1775694646518,-1297.29822504,0.00019781,2]
[420122315,1775694646528,-4738.3955558,0.00019781,2]
[420122316,1775694646537,-452.32431558,0.00019781,2]
[420122317,1775694646547,-1807.48796507,0.00019781,2]
[420122318,1775694646557,-150.40289501,0.000198,2]
[420122319,1775694646566,-500.00052977,0.00019812,2]
[420122320,1775694646575,-500.0,0.0002,2]
[420122321,1775694646585,-1989.22454292,0.0002,7]
[420122322,1775694646596,-10.77545708,0.0002,7]
[420122323,1775694646606,-8069.07454291,0.00020114,7]
[420122325,1775694678703,447.77519772,0.0003131,120]
[420122326,1775694788412,800.0,0.00031507,120]
[420122327,1775694804047,800.0,0.00031507,120]
[420122328,1775694821034,800.0,0.00031507,120]
[420122329,1775694839386,680.0,0.00031507,120]
[420122332,1775694978741,268.66511864,0.0003129,120]
[420122333,1775695107667,13241.04666488,0.00031,120]
[420122334,1775695236659,519.0,0.00031506,120]
[420122335,1775695278643,161.19907118,0.00031289,120]
[420122336,1775695286494,-151.0,0.00013426,10]
[420122337,1775695289674,-151.0,0.00013426,10]
[420122338,1775695292533,1000.0,0.000315,120]
[420122339,1775695316624,1000.0,0.000315,120]
[420122340,1775695362436,-151.0,0.00013426,10]
[420122348,1775695832857,-2581.36439249,0.00012706,2]
[420122350,1775695832870,-1322.16533898,0.00012706,2]
[420122351,1775695832881,-723.480002,0.00012706,2]
[420122352,1775695832891,-1200.0,0.00012832,2]
[420122353,1775695832901,-300.0,0.00012833,2]
[420122354,1775695832910,-300.0,0.00012833,2]
[420122355,1775695832920,-300.0,0.00012833,2]
[420122356,1775695832929,-300.0,0.00012833,2]
[420122357,1775695832939,-482.47853162,0.00012834,2]
[420122358,1775695832950,-925.33631496,0.00012834,2]
[420122413,1775695838958,-820.992352,0.00012834,2]
[420122414,1775695838970,-2771.19280142,0.00012834,2]
[420122415,1775695838980,-602.0,0.00012834,2]
[420122416,1775695838990,-168.7403045,0.00012964,2]
[420122417,1775695838999,-300.0,0.00013421,2]
[420122418,1775695839009,-1200.0,0.00013421,2]
[420122419,1775695839019,-45131.56696639,0.00013698,2]
[420122420,1775695839030,-400.92225888,0.00013698,2]
[420122421,1775695839042,-4467.51077473,0.00013698,2]
[420122422,1775695839052,-575.9482896,0.00013699,2]
[420122423,1775695839061,-1000.0,0.00013699,2]
[420122424,1775695839071,-420.0,0.00014076,2]
[420122425,1775695839080,-420.0,0.00014076,2]
[420122426,1775695839089,-420.0,0.00014076,2]
[420122427,1775695839099,-420.0,0.00014076,2]
[420122428,1775695839108,-1680.0,0.00014115,2]
[420122429,1775695839118,-1096.12997118,0.00014175,2]
[420122430,1775695839127,-1253.300829,0.00014666,2]
[420122431,1775695839136,-1680.0,0.00014712,2]
[420122432,1775695839145,-420.0,0.00014763,2]
[420122433,1775695839155,-587.0,0.00015439,2]
[420122434,1775695839165,-587.0,0.00015439,2]
[420122435,1775695839174,-587.0,0.00015439,2]
[420122436,1775695839183,-587.0,0.00015439,2]
[420122437,1775695839193,-2351.0,0.00015527,2]
[420122438,1775695839203,-2351.0,0.00016127,2]
[420122439,1775695839213,-164.608374,0.00016731,2]
[420122440,1775695839222,-2880.0,0.00017079,2]
[420122441,1775695839232,-1197.0,0.00017679,2]
[420122442,1775695839241,-179.98622378,0.00017852,2]
[420122443,1775695839250,-719.22495024,0.00017852,2]
[420122444,1775695839260,-2760.95631631,0.00017902,2]
[420122445,1775695839270,-15380.3736,0.00018304,2]
[420122446,1775695839279,-568.88203279,0.00018531,2]
[420122447,1775695839289,-250.0,0.00019483,2]
[420122448,1775695839298,-264.22244466,0.00019547,2]
[420122449,1775695839308,-500.0,0.00019547,2]
[420122450,1775695839317,-500.0,0.00019547,2]
[420122451,1775695839326,-500.0,0.00019547,2]
[420122452,1775695839336,-500.0,0.00019547,2]
[420122453,1775695839345,-500.0,0.00019547,2]
[420122454,1775695839355,-500.0,0.00019547,2]
[420122455,1775695839366,-500.0,0.00019547,2]
[420122456,1775695839375,-500.0,0.00019547,2]
[420122457,1775695839385,-500.0,0.00019547,2]
[420122458,1775695839395,-500.0,0.00019547,2]
[420122459,1775695839405,-500.0,0.00019547,2]
[420122460,1775695839415,-500.0,0.00019547,2]
[420122461,1775695839425,-500.0,0.00019547,2]
[420122462,1775695839435,-500.0,0.00019547,2]
[420122463,1775695839445,-500.0,0.00019547,2]
[420122464,1775695839455,-500.0,0.00019547,2]
[420122465,1775695839465,-500.0,0.00019547,2]
[420122466,1775695839475,-2150.738,0.00019547,2]
[420122467,1775695839486,-500.0,0.00019547,2]
[420122468,1775695839495,-500.0,0.00019547,2]
[420122469,1775695839505,-537.6845,0.00019547,2]
[420122470,1775695839515,-688.3735149,0.00019547,2]
[420122471,1775695839524,-557.5788265,0.00019602,2]
[420122472,1775695839534,-578.20924308,0.00019657,2]
[420122473,1775695839543,-599.60298507,0.00019712,2]
[420122474,1775695839554,-621.78829552,0.00019767,2]
[420122475,1775695839563,-644.79446246,0.00019822,2]
[420122476,1775695839572,-241.79860677,0.00019848,2]
[420122477,1775695839581,-668.65185757,0.00019877,2]
[420122478,1775695839591,-693.3919763,0.00019932,2]
[420122479,1775695839601,-719.04747942,0.00019987,2]
[420122480,1775695839610,-1122.0,0.00020024,7]
[420122481,1775695839631,-745.65223616,0.00020042,2]
[420122482,1775695839640,-500.0,0.00020095,2]
[420122483,1775695839650,-2230.315306,0.00020095,2]
[420122484,1775695839660,-773.2413689,0.00020097,2]
[420122485,1775695839670,-538.1077707,0.00020152,2]
[420122486,1775695839681,-250.0,0.00020236,2]
[420122487,1775695839690,-291.0,0.00020268,2]
[420122488,1775695839700,-160.0,0.00020269,2]
[420122489,1775695839710,-261.9,0.00020301,2]
[420122490,1775695839720,-493.38,0.0002032,3]
[420122491,1775695839729,-246.69,0.0002032,3]
[420122492,1775695839739,-740.12,0.0002032,3]
[420122493,1775695839749,-335.55297104,0.00020329,2]
[420122494,1775695839759,-500.0,0.00020329,2]
[420122495,1775695839769,-500.0,0.00020329,2]
[420122496,1775695839779,-500.0,0.00020329,2]
[420122497,1775695839788,-500.0,0.00020329,2]
[420122498,1775695839797,-500.0,0.00020329,2]
[420122499,1775695839807,-500.0,0.00020329,2]
[420122500,1775695839818,-500.0,0.00020329,2]
[420122501,1775695839829,-500.0,0.00020329,2]
[420122502,1775695839839,-500.0,0.00020329,2]
[420122503,1775695839849,-500.0,0.00020329,2]
[420122504,1775695839859,-500.0,0.00020329,2]
[420122505,1775695839870,-359.20884547,0.00020329,2]
[420122506,1775695839881,-300.78056364,0.00020329,2]
[420122507,1775695839891,-500.0,0.00020329,2]
[420122508,1775695839900,-500.0,0.00020329,2]
[420122509,1775695839910,-500.0,0.00020329,2]
[420122510,1775695839920,-500.0,0.00020329,2]
[420122511,1775695839930,-500.0,0.00020329,2]
[420122512,1775695839939,-500.0,0.00020329,2]
[420122513,1775695839948,-500.0,0.00020329,2]
[420122514,1775695839958,-15992.80482761,0.0002033,2]
[420122580,1775695841433,-5298.038306,0.0002033,2]
[420122582,1775695841445,-603.519,0.0002033,2]
[420122584,1775695841456,-531.90489623,0.0002033,2]
[420122793,1775695844289,-2790.29908178,0.0002033,2]
[420122794,1775695844300,-660.112334,0.0002033,2]
[420122795,1775695844312,-1233.93026423,0.0002033,2]
[420122819,1775695846895,-500.0,0.00020329,2]
[420122820,1775695846904,-293.19167013,0.00020329,2]
[420122821,1775695846914,-500.0,0.00020329,2]
[420122822,1775695846923,-500.0,0.00020329,2]
[420122823,1775695846934,-500.0,0.00020329,2]
[420122824,1775695846944,-62628.68899572,0.0002033,2]
[420122825,1775695846953,-986.77,0.00020367,3]
[420122826,1775695846963,-1371.0,0.00020377,2]
[420122827,1775695846973,-2206.0,0.00020377,2]
[420122828,1775695846982,-440.0,0.00020377,2]
[420122829,1775695846992,-396.305,0.00020377,2]
[420122830,1775695847001,-184.0,0.00020377,2]
[420122831,1775695847011,-2312.83697232,0.00020643,2]
[420122832,1775695847020,-600.0,0.0002075,2]
[420122833,1775695847030,-201.58495626,0.00020768,2]
[420122834,1775695847040,-947.0,0.00020768,2]
[420122835,1775695847049,-200.0,0.00020768,2]
[420122836,1775695847059,-947.0,0.00020768,2]
[420122837,1775695847069,-947.0,0.00020768,2]
[420122838,1775695847079,-340.0,0.00020768,2]
[420122839,1775695847088,-647.0,0.00020768,2]
[420122840,1775695847098,-947.0,0.00020768,2]
[420122841,1775695847108,-340.0,0.00020768,2]
[420122842,1775695847118,-647.0,0.00020768,2]
[420122843,1775695847127,-947.0,0.00020768,2]
[420122844,1775695847137,-340.0,0.00020768,2]
[420122845,1775695847147,-647.0,0.00020768,2]
[420122846,1775695847156,-947.0,0.00020768,2]
[420122847,1775695847166,-340.0,0.00020768,2]
[420122848,1775695847175,-647.0,0.00020768,2]
[420122849,1775695847185,-947.0,0.00020768,2]
[420122850,1775695847196,-647.0,0.00020768,2]
[420122851,1775695847206,-947.0,0.00020768,2]
[420122852,1775695847216,-340.0,0.00020768,2]
[420122853,1775695847225,-947.0,0.00020768,2]
[420122854,1775695847234,-340.0,0.00020768,2]
[420122855,1775695847244,-647.0,0.00020768,2]
[420122856,1775695847253,-494.20155262,0.00020768,2]
[420122857,1775695847263,-355.58808089,0.00020768,2]
[420122858,1775695847272,-647.0,0.00020768,2]
[420122859,1775695847282,-647.0,0.00020768,2]
[420122860,1775695847291,-647.0,0.00020768,2]
[420122861,1775695847300,-647.0,0.00020768,2]
[420122862,1775695847309,-647.0,0.00020768,2]
[420122863,1775695847318,-660.29877264,0.00020768,2]
[420122864,1775695847328,-164.0,0.00020768,2]
[420122865,1775695847337,-191.88896414,0.00020768,2]
[420122866,1775695847347,-261.9,0.00020769,2]
[420122867,1775695847356,-4020.0,0.00020834,2]
[420122868,1775695847366,-17498.7897767,0.000209,2]
[420122869,1775695847375,-200.0,0.00020965,2]
[420122870,1775695847385,-947.0,0.00020965,2]
[420122871,1775695847395,-166.0,0.00020965,2]
[420122872,1775695847404,-947.0,0.00020965,2]
[420122873,1775695847414,-166.0,0.00020965,2]
[420122874,1775695847424,-155.0,0.00020965,2]
[420122875,1775695847434,-947.0,0.00020965,2]
[420122876,1775695847443,-647.0,0.00020965,2]
[420122877,1775695847453,-166.0,0.00020965,2]
[420122878,1775695847462,-166.0,0.00020965,2]
[420122879,1775695847472,-155.0,0.00020965,2]
[420122880,1775695847481,-647.0,0.00020965,2]
[420122881,1775695847491,-947.0,0.00020965,2]
[420122882,1775695847501,-166.0,0.00020965,2]
[420122883,1775695847510,-160.01082423,0.00020965,2]
[420122884,1775695847520,-947.0,0.00020965,2]
[420122885,1775695847529,-166.0,0.00020965,2]
[420122886,1775695847538,-947.0,0.00020965,2]
[420122887,1775695847547,-172.0,0.00020965,2]
[420122888,1775695847557,-647.0,0.00020965,2]
[420122889,1775695847566,-166.61889007,0.00020965,2]
[420122890,1775695847575,-947.0,0.00020965,2]
[420122891,1775695847586,-947.0,0.00020965,2]
[420122892,1775695847595,-947.0,0.00020965,2]
[420122893,1775695847604,-947.0,0.00020965,2]
[420122894,1775695847613,-947.0,0.00020965,2]
[420122895,1775695847622,-947.0,0.00020965,2]
[420122896,1775695847632,-947.0,0.00020965,2]
[420122897,1775695847642,-947.0,0.00020965,2]
[420122898,1775695847652,-947.0,0.00020965,2]
[420122899,1775695847661,-947.0,0.00020965,2]
[420122900,1775695847670,-947.0,0.00020965,2]
[420122901,1775695847680,-947.0,0.00020965,2]
[420122902,1775695847689,-947.0,0.00020965,2]
[420122903,1775695847699,-947.0,0.00020965,2]
[420122904,1775695847708,-947.0,0.00020965,2]
[420122905,1775695847718,-947.0,0.00020965,2]
[420122906,1775695847727,-947.0,0.00020965,2]
[420122907,1775695847736,-947.0,0.00020965,2]
[420122908,1775695847746,-947.0,0.00020965,2]
[420122909,1775695847755,-947.0,0.00020965,2]
[420122910,1775695847764,-947.0,0.00020965,2]
[420122911,1775695847773,-947.0,0.00020965,2]
[420122912,1775695847783,-947.0,0.00020965,2]
[420122913,1775695847793,-901.06416302,0.00020965,2]
[420122914,1775695847803,-342.613,0.00021,2]
[420122915,1775695847812,-4742.86159831,0.00021014,7]
[420122916,1775695847827,-9093.13840169,0.00021014,7]
[420122917,1775695847836,-1028.0,0.00021014,7]
[420122918,1775695847846,-2398.4119403,0.00021191,2]
[420122919,1775695847856,-261.9,0.00021236,2]
[420122920,1775695847866,-1331.359475,0.000214,2]
[420122921,1775695847875,-168.0,0.00021416,2]
[420122922,1775695847884,-988.51747801,0.000215,2]
[420122923,1775696074549,159.0,0.000315,120]
[420122924,1775696088216,160.0,0.000315,120]
[420122925,1775696129890,-151.0,0.00013292,10]
[420122926,1775696131069,-151.0,0.00013292,10]
[420122927,1775696143191,1569.03,0.00031507,120]
[420122928,1775696392369,1000.0,0.00031507,120]
[420122929,1775696397588,1051.02,0.00031507,120]
[420122931,1775696588216,-152.17634024,0.00013233,14]
[420122933,1775697023858,1094.83877554,5e-05,2]
[420122987,1775697035517,-5000.0,9.801e-05,2]
[420122988,1775697035526,-5000.0,9.9e-05,2]
[420122989,1775697035536,-559.0,9.9e-05,2]
[420122991,1775697035545,-356.18235441,0.0001,2]
[420122992,1775697035555,-306.88054643,0.0001,2]
[420122993,1775697035565,-300.0,0.00012499,2]
[420122994,1775697035574,-300.0,0.00012499,2]
[420122995,1775697035583,-1968.15891003,0.000125,2]
[420122996,1775697035595,-670.94,0.000125,2]
[420122997,1775697035607,-2454.22288086,0.000125,2]
[420123049,1775697039066,-1312.0,0.000125,2]